[Event "34rd NATO Championship 2024"]
[Site "Rhodes"]
[Date "2024.10.21"]
[Round "1.19"]
[White "Sauer, Marko"]
[Black "Jeselson, Andrew"]
[Result "1/2-1/2"]
[ECO "B22"]
[WhiteElo "2086"]
[BlackElo "1858"]
[Annotator "RC"]
[PlyCount "102"]
[EventDate "2024.09.18"]
[EventType "swiss"]
[EventCountry "GRE"]
[SourceTitle "playchess.com"]
[Source "ChessBase"]
[SourceQuality "1"]
[TimeControl "5400+30"]

1. e4 {[%emt 0:00:05]} c5 {[%emt 0:00:12]} 2. c3 {[%emt 0:00:34]} Nf6 {[%emt 0:00:23]} 3. e5 {[%emt 0:00:53]} Nd5 {[%emt 0:00:13]} 4. d4 {[%emt 0:01:32]} cxd4 {[%emt 0:00:29]} 5. cxd4 {[%emt 0:00:20]} d6 {[%emt 0:01:09]} 6. Nf3 {[%emt 0:01:37]} Nc6 {[%emt 0:01:41]} 7. Be2 {[%emt 0:05:44]} e6 {[%emt 0:06:37]} 8. O-O {[%emt 0:01:36]} Be7 {[%emt 0:00:18]} 9. Bd2 {[%emt 0:00:33]} Qb6 {[%emt 0:02:48]} 10. exd6 {[%emt 0:08:09]} Bxd6 {[%emt 0:03:39]} 11. Bc3 {[%emt 0:01:48]} O-O {[%emt 0:00:25]} 12. Nbd2 {[%emt 0:00:24]} Nf4 {[%emt 0:05:18]} 13. Re1 {[%emt 0:08:05]} Nxe2+ {[%emt 0:00:47]} 14. Qxe2 {[%emt 0:00:18]} Qd8 {[%emt 0:06:38]} 15. Nc4 {[%emt 0:01:47]} Ne7 {[%emt 0:11:26]} 16. Nxd6 {[%emt 0:05:03]} Qxd6 {[%emt 0:00:07]} 17. Qe5 {[%emt 0:02:06]} Qxe5 {[%emt 0:01:32]} 18. dxe5 {[%emt 0:01:41]} Nd5 {[%emt 0:00:09]} 19. Bd2 {[%emt 0:01:48]} Bd7 {[%emt 0:00:28]} 20. Rac1 {[%emt 0:00:46]} Rfc8 {[%emt 0:00:10]} 21. Nd4 {[%emt 0:00:41]} Kf8 {[%emt 0:01:14]} 22. f4 {[%emt 0:02:14]} h5 {[%emt 0:01:25]} 23. Kf2 {[%emt 0:00:35]} Ke7 {[%emt 0:15:09]} 24. h3 {[%emt 0:03:41]} a6 {[%emt 0:09:04]} 25. g4 {[%emt 0:09:16]} hxg4 {[%emt 0:00:13]} 26. hxg4 {[%emt 0:00:06]} Rxc1 {[%emt 0:00:10]} 27. Rxc1 {[%emt 0:00:13]} Rh8 {[%emt 0:00:07]} 28. Kg3 {[%emt 0:00:28]} f6 {[%emt 0:03:14]} 29. exf6+ {[%emt 0:07:26]} gxf6 {[%emt 0:00:18]} 30. Re1 {[%emt 0:01:49]} Kd6 {[%emt 0:02:25]} 31. Nf3 {[%emt 0:03:27]} Ke7 {[%emt 0:19:32]} 32. g5 {[%emt 0:07:59]} Kf7 {[%emt 0:00:14]} 33. gxf6 {[%emt 0:01:05]} Kxf6 {[%emt 0:00:26]} 34. Ne5 {[%emt 0:00:27]} Bb5 {[%emt 0:03:03]} 35. b3 {[%emt 0:02:57]} Rc8 {[%emt 0:00:25]} 36. a4 {[%emt 0:04:40]} Be8 {[%emt 0:00:20]} 37. Ng4+ {[%emt 0:01:58]} Kf7 {[%emt 0:00:18]} 38. Rh1 {[%emt 0:03:53]} Kg7 {[%emt 0:02:04]} 39. Rc1 {[%emt 0:02:47]} Rxc1 {[%emt 0:00:16]} 40. Bxc1 {[%emt 0:01:08]} Bg6 {[%emt 0:00:17]} 41. Bb2+ {[%emt 0:01:27]} Kg8 {[%emt 0:01:49]} 42. Nf6+ {[%emt 0:03:17]} Nxf6 {[%emt 0:00:07]} 43. Bxf6 {[%emt 0:00:27]} a5 {[%emt 0:00:33]} 44. Kf3 {[%emt 0:00:43]} Bc2 {[%emt 0:00:08]} 45. Bd8 {[%emt 0:00:06]} Bxb3 {[%emt 0:00:05]} 46. Bxa5 {[%emt 0:00:05]} Bxa4 {[%emt 0:00:13]} 47. Bc7 {[%emt 0:00:10]} Kf7 {[%emt 0:00:10]} 48. Ke3 {[%emt 0:00:05]} Kf6 {[%emt 0:00:07]} 49. Kd3 {[%emt 0:00:05]} Kf5 {[%emt 0:00:05]} 50. Kc3 {[%emt 0:00:04]} Bc6 {[%emt 0:00:05]} 51. Kb4 {[%emt 0:00:05]} Bd5 {[%emt 0:00:06]} 1/2-1/2

[Event "34rd NATO Championship 2024"]
[Site "Rhodes"]
[Date "2024.10.21"]
[Round "1.20"]
[White "Muld, Tarmo"]
[Black "Tustanowski, Mateusz"]
[Result "0-1"]
[ECO "D51"]
[WhiteElo "1857"]
[BlackElo "2081"]
[Annotator "RC"]
[PlyCount "68"]
[EventDate "2024.09.18"]
[EventType "swiss"]
[EventCountry "GRE"]
[SourceTitle "playchess.com"]
[Source "ChessBase"]
[SourceQuality "1"]
[TimeControl "5400+30"]

1. d4 {[%emt 0:00:06]} Nf6 {[%emt 0:00:14]} 2. c4 {[%emt 0:00:37]} e6 {[%emt 0:00:13]} 3. Nf3 {[%emt 0:00:45]} d5 {[%emt 0:00:22]} 4. Nc3 {[%emt 0:00:53]} c6 {[%emt 0:00:25]} 5. Bg5 {[%emt 0:01:08]} Nbd7 {[%emt 0:00:20]} 6. cxd5 {[%emt 0:01:07]} exd5 {[%emt 0:00:24]} 7. g3 {[%emt 0:00:21]} h6 {[%emt 0:03:46]} 8. Bd2 {[%emt 0:01:15]} Bd6 {[%emt 0:04:20]} 9. Bg2 {[%emt 0:00:38]} O-O {[%emt 0:00:58]} 10. O-O {[%emt 0:00:23]} Re8 {[%emt 0:02:53]} 11. a3 {[%emt 0:00:40]} Nb6 {[%emt 0:03:19]} 12. Re1 {[%emt 0:01:11]} Ne4 {[%emt 0:04:28]} 13. b3 {[%emt 0:02:36]} Qf6 {[%emt 0:09:43]} 14. a4 {[%emt 0:01:03]} Bg4 {[%emt 0:05:16]} 15. a5 {[%emt 0:00:31]} Nd7 {[%emt 0:01:30]} 16. a6 {[%emt 0:00:59]} b6 {[%emt 0:02:07]} 17. Qc2 {[%emt 0:01:13]} Bxf3 {[%emt 0:20:01]} 18. exf3 {[%emt 0:00:30]} Nxd2 {[%emt 0:02:32]} 19. Qxd2 {[%emt 0:00:30]} Bb4 {[%emt 0:00:50]} 20. Rxe8+ {[%emt 0:01:57]} Rxe8 {[%emt 0:00:09]} 21. Qd3 {[%emt 1:22:37]} Nc5 {[%emt 0:10:58]} 22. dxc5 {[%emt 0:00:00]} Bxc3 {[%emt 0:00:08]} 23. Rc1 {[%emt 0:00:00]} Bb2 {[%emt 0:00:27]} 24. Rd1 {[%emt 0:00:00]} bxc5 {[%emt 0:00:28]} 25. Bh3 {[%emt 0:00:00]} Qe7 {[%emt 0:12:19]} 26. Kg2 {[%emt 0:00:00]} g6 {[%emt 0:01:35]} 27. Qc2 {[%emt 0:00:00]} Bd4 {[%emt 0:04:51]} 28. b4 {[%emt 0:00:00]} Rb8 {[%emt 0:00:32]} 29. bxc5 {[%emt 0:00:00]} Rb2 {[%emt 0:00:17]} 30. Qd3 {[%emt 0:00:00]} Rxf2+ {[%emt 0:00:54]} 31. Kh1 {[%emt 0:00:00]} Bxc5 {[%emt 0:00:42]} 32. Rc1 {[%emt 0:00:00]} Bb6 {[%emt 0:01:04]} 33. Bc8 {[%emt 0:00:00]} Qe5 {[%emt 0:01:50]} 34. Bb7 {[%emt 0:00:00]} Qb2 {[%emt 0:00:15]} 0-1

[Event "34rd NATO Championship 2024"]
[Site "Rhodes"]
[Date "2024.10.21"]
[Round "1.21"]
[White "Mestek, Igor"]
[Black "Wagenaar, Harm Theo"]
[Result "1-0"]
[ECO "C00"]
[WhiteElo "2080"]
[BlackElo "1857"]
[Annotator "RC"]
[PlyCount "63"]
[EventDate "2024.09.18"]
[EventType "swiss"]
[EventCountry "GRE"]
[SourceTitle "playchess.com"]
[Source "ChessBase"]
[SourceQuality "1"]
[TimeControl "5400+30"]

1. Nf3 {[%emt 0:00:14]} d5 {[%emt 0:00:23]} 2. e4 {[%emt 0:00:14]} e6 {[%emt 0:00:57]} 3. Nc3 {[%emt 0:00:10]} dxe4 {[%emt 0:00:47]} 4. Nxe4 {[%emt 0:00:08]} Bd7 {[%emt 0:00:29]} 5. g3 {[%emt 0:03:35]} Bc6 {[%emt 0:01:06]} 6. Qe2 {[%emt 0:00:30]} Nd7 {[%emt 0:01:33]} 7. Bg2 {[%emt 0:01:12]} Ngf6 {[%emt 0:00:48]} 8. Nxf6+ {[%emt 0:01:34]} Nxf6 {[%emt 0:02:46]} 9. O-O {[%emt 0:02:21]} Be7 {[%emt 0:02:30]} 10. d4 {[%emt 0:00:42]} O-O {[%emt 0:00:36]} 11. c4 {[%emt 0:00:35]} Bxf3 {[%emt 0:03:41]} 12. Bxf3 {[%emt 0:00:41]} c6 {[%emt 0:00:20]} 13. Rd1 {[%emt 0:02:55]} Re8 {[%emt 0:00:36]} 14. Be3 {[%emt 0:01:17]} Qa5 {[%emt 0:07:04]} 15. a3 {[%emt 0:01:34]} Rad8 {[%emt 0:07:57]} 16. Kg2 {[%emt 0:12:58]} Rd7 {[%emt 0:17:11]} 17. Qc2 {[%emt 0:10:50]} Red8 {[%emt 0:06:40]} 18. g4 {[%emt 0:16:29]} Ne8 {[%emt 0:01:18]} 19. b4 {[%emt 0:00:23]} Qc7 {[%emt 0:00:50]} 20. Rd2 {[%emt 0:04:26]} Bd6 {[%emt 0:02:21]} 21. Rad1 {[%emt 0:02:21]} Bf4 {[%emt 0:01:08]} 22. Qe4 {[%emt 0:03:01]} Bxe3 {[%emt 0:01:00]} 23. Qxe3 {[%emt 0:00:38]} a6 {[%emt 0:16:08]} 24. d5 {[%emt 0:07:56]} exd5 {[%emt 0:03:00]} 25. cxd5 {[%emt 0:00:09]} cxd5 {[%emt 0:00:49]} 26. Rxd5 {[%emt 0:00:55]} Kf8 {[%emt 0:06:58]} 27. Rxd7 {[%emt 0:11:21]} Rxd7 {[%emt 0:00:09]} 28. Rxd7 {[%emt 0:00:09]} Qxd7 {[%emt 0:00:09]} 29. Qe4 {[%emt 0:00:09]} Qa4 {[%emt 0:05:40]} 30. Qxb7 {[%emt 0:02:39]} Qxa3 {[%emt 0:03:12]} 31. Bd5 {[%emt 0:00:19]} Nd6 {[%emt 0:00:06]} 32. Qb8+ {[%emt 0:00:12]} 1-0

[Event "34rd NATO Championship 2024"]
[Site "Rhodes"]
[Date "2024.10.21"]
[Round "1.22"]
[White "Korge, Kersti"]
[Black "Jacob, Tobias"]
[Result "0-1"]
[ECO "D05"]
[WhiteElo "1854"]
[BlackElo "2073"]
[Annotator "RC"]
[PlyCount "34"]
[EventDate "2024.09.18"]
[EventType "swiss"]
[EventCountry "GRE"]
[SourceTitle "playchess.com"]
[Source "ChessBase"]
[SourceQuality "1"]
[TimeControl "5400+30"]

1. d4 {[%emt 0:00:06]} d5 {[%emt 0:00:06]} 2. Nf3 {[%emt 0:00:04]} Nf6 {[%emt 0:00:09]} 3. e3 {[%emt 0:00:05]} e6 {[%emt 0:00:11]} 4. Bd3 {[%emt 0:00:05]} c5 {[%emt 0:00:12]} 5. b3 {[%emt 0:00:06]} b6 {[%emt 0:00:23]} 6. Bb2 {[%emt 0:00:07]} Bb7 {[%emt 0:00:15]} 7. O-O {[%emt 0:00:07]} Nc6 {[%emt 0:00:20]} 8. a3 {[%emt 0:00:21]} Bd6 {[%emt 0:00:25]} 9. Ne5 {[%emt 0:00:11]} O-O {[%emt 0:01:59]} 10. Nd2 {[%emt 0:01:37]} Rc8 {[%emt 0:03:37]} 11. f4 {[%emt 0:00:40]} Ne7 {[%emt 0:00:11]} 12. g4 {[%emt 0:00:26]} cxd4 {[%emt 0:03:04]} 13. exd4 {[%emt 0:00:30]} Ne4 {[%emt 0:02:01]} 14. Bxe4 {[%emt 0:10:45]} dxe4 {[%emt 0:01:22]} 15. Qe2 {[%emt 0:00:30]} Bxe5 {[%emt 0:09:46]} 16. fxe5 {[%emt 0:04:47]} Rxc2 {[%emt 0:00:23]} 17. Rab1 {[%emt 0:00:31]} Rxb2 {[%emt 0:00:27]} 0-1

[Event "34rd NATO Championship 2024"]
[Site "Rhodes"]
[Date "2024.10.21"]
[Round "1.23"]
[White "Fichtner, Ewald"]
[Black "Allmann, Lauri"]
[Result "1/2-1/2"]
[ECO "B08"]
[WhiteElo "2063"]
[BlackElo "1852"]
[Annotator "RC"]
[PlyCount "57"]
[EventDate "2024.09.18"]
[EventType "swiss"]
[EventCountry "GRE"]
[SourceTitle "playchess.com"]
[Source "ChessBase"]
[SourceQuality "1"]
[TimeControl "5400+30"]

1. d4 {[%emt 0:00:03]} Nf6 {[%emt 0:00:06]} 2. Nc3 {[%emt 0:00:12]} g6 {[%emt 0:00:13]} 3. e4 {[%emt 0:00:07]} d6 {[%emt 0:00:16]} 4. Nf3 {[%emt 0:00:05]} Bg7 {[%emt 0:00:06]} 5. Be2 {[%emt 0:00:06]} Nbd7 {[%emt 0:00:51]} 6. e5 {[%emt 0:02:17]} dxe5 {[%emt 0:01:26]} 7. dxe5 {[%emt 0:00:06]} Ng4 {[%emt 0:05:12]} 8. e6 {[%emt 0:01:34]} Nde5 {[%emt 0:10:54]} 9. Qxd8+ {[%emt 0:03:25]} Kxd8 {[%emt 0:00:10]} 10. Ng5 {[%emt 0:04:11]} f6 {[%emt 0:09:49]} 11. Nf7+ {[%emt 0:06:56]} Nxf7 {[%emt 0:00:26]} 12. exf7 {[%emt 0:00:26]} Ne5 {[%emt 0:01:51]} 13. Be3 {[%emt 0:02:36]} Nxf7 {[%emt 0:03:05]} 14. O-O-O+ {[%emt 0:00:22]} Nd6 {[%emt 0:03:47]} 15. Nd5 {[%emt 0:03:18]} e6 {[%emt 0:06:46]} 16. Nc3 {[%emt 0:03:58]} Ke7 {[%emt 0:06:44]} 17. Bc5 {[%emt 0:02:20]} b6 {[%emt 0:03:00]} 18. Bf3 {[%emt 0:01:09]} Rb8 {[%emt 0:02:14]} 19. Be3 {[%emt 0:02:59]} Bb7 {[%emt 0:02:39]} 20. Bxb7 {[%emt 0:01:04]} Rxb7 {[%emt 0:00:37]} 21. Rhe1 {[%emt 0:00:39]} Kf7 {[%emt 0:02:59]} 22. f3 {[%emt 0:02:30]} Re8 {[%emt 0:02:53]} 23. Ne2 {[%emt 0:02:03]} Nc4 {[%emt 0:04:59]} 24. Bf4 {[%emt 0:05:33]} e5 {[%emt 0:05:43]} 25. Rd7+ {[%emt 0:00:57]} Re7 {[%emt 0:01:09]} 26. Rxe7+ {[%emt 0:00:18]} Kxe7 {[%emt 0:00:01]} 27. b3 {[%emt 0:00:45]} Nd6 {[%emt 0:01:33]} 28. Bd2 {[%emt 0:00:49]} c5 {[%emt 0:03:42]} 29. Nf4 {[%emt 0:01:29]} 1/2-1/2

[Event "34rd NATO Championship 2024"]
[Site "Rhodes"]
[Date "2024.10.21"]
[Round "1.24"]
[White "Filipow, Mateusz"]
[Black "Schott, Guido"]
[Result "1/2-1/2"]
[ECO "E21"]
[WhiteElo "1843"]
[BlackElo "2059"]
[Annotator "RC"]
[PlyCount "44"]
[EventDate "2024.09.18"]
[EventType "swiss"]
[EventCountry "GRE"]
[SourceTitle "playchess.com"]
[Source "ChessBase"]
[SourceQuality "1"]
[TimeControl "5400+30"]

1. d4 {[%emt 0:00:04]} Nf6 {[%emt 0:00:33]} 2. Nf3 {[%emt 0:00:33]} e6 {[%emt 0:00:47]} 3. c4 {[%emt 0:00:26]} b6 {[%emt 0:00:50]} 4. Nc3 {[%emt 0:01:18]} Bb4 {[%emt 0:01:50]} 5. a3 {[%emt 0:01:00]} Bxc3+ {[%emt 0:01:19]} 6. bxc3 {[%emt 0:00:10]} d6 {[%emt 0:02:14]} 7. Qc2 {[%emt 0:01:31]} Bb7 {[%emt 0:01:09]} 8. e3 {[%emt 0:02:38]} Be4 {[%emt 0:07:34]} 9. Bd3 {[%emt 0:00:12]} Bxd3 {[%emt 0:01:22]} 10. Qxd3 {[%emt 0:00:06]} Nbd7 {[%emt 0:04:22]} 11. e4 {[%emt 0:02:14]} e5 {[%emt 0:04:03]} 12. O-O {[%emt 0:00:15]} O-O {[%emt 0:04:21]} 13. Bg5 {[%emt 0:00:34]} h6 {[%emt 0:03:35]} 14. Bh4 {[%emt 0:02:29]} Qe7 {[%emt 0:09:42]} 15. Nd2 {[%emt 0:06:38]} g5 {[%emt 0:03:15]} 16. Bg3 {[%emt 0:00:13]} Nh5 {[%emt 0:01:27]} 17. Rfe1 {[%emt 0:06:03]} Rae8 {[%emt 0:08:09]} 18. Nf1 {[%emt 0:06:56]} Nf4 {[%emt 0:19:28]} 19. Qc2 {[%emt 0:09:02]} Qe6 {[%emt 0:08:46]} 20. d5 {[%emt 0:03:50]} Qg6 {[%emt 0:01:49]} 21. Ne3 {[%emt 0:00:49]} Nc5 {[%emt 0:00:18]} 22. Nf5 {[%emt 0:02:41]} Nh5 {[%emt 0:01:31]} 1/2-1/2

[Event "34rd NATO Championship 2024"]
[Site "Rhodes"]
[Date "2024.10.21"]
[Round "1.25"]
[White "Michalowski, Patryk"]
[Black "Ivsek, Cveto"]
[Result "1-0"]
[ECO "B13"]
[WhiteElo "2054"]
[BlackElo "1839"]
[Annotator "RC"]
[PlyCount "79"]
[EventDate "2024.09.18"]
[EventType "swiss"]
[EventCountry "GRE"]
[SourceTitle "playchess.com"]
[Source "ChessBase"]
[SourceQuality "1"]
[TimeControl "5400+30"]

1. e4 {[%emt 0:00:03]} c6 {[%emt 0:00:21]} 2. d4 {[%emt 0:00:06]} d5 {[%emt 0:00:14]} 3. exd5 {[%emt 0:00:07]} cxd5 {[%emt 0:00:16]} 4. Bd3 {[%emt 0:00:08]} Nc6 {[%emt 0:01:24]} 5. c3 {[%emt 0:00:11]} e5 {[%emt 0:10:05]} 6. dxe5 {[%emt 0:00:09]} Nxe5 {[%emt 0:00:37]} 7. Qe2 {[%emt 0:00:11]} Qe7 {[%emt 0:01:34]} 8. Bb5+ {[%emt 0:00:14]} Bd7 {[%emt 0:03:15]} 9. Bxd7+ {[%emt 0:00:44]} Nxd7 {[%emt 0:00:05]} 10. Qxe7+ {[%emt 0:01:28]} Bxe7 {[%emt 0:00:31]} 11. Be3 {[%emt 0:00:37]} Ngf6 {[%emt 0:00:17]} 12. Nf3 {[%emt 0:00:43]} O-O {[%emt 0:01:28]} 13. O-O {[%emt 0:00:37]} Bc5 {[%emt 0:02:31]} 14. Bxc5 {[%emt 0:01:35]} Nxc5 {[%emt 0:00:11]} 15. Na3 {[%emt 0:03:37]} Na4 {[%emt 0:03:32]} 16. Rab1 {[%emt 0:00:35]} a6 {[%emt 0:05:17]} 17. Nc2 {[%emt 0:01:22]} Rfe8 {[%emt 0:00:55]} 18. Ne3 {[%emt 0:00:21]} Rad8 {[%emt 0:04:28]} 19. Rfd1 {[%emt 0:00:31]} Nb6 {[%emt 0:02:30]} 20. Rd4 {[%emt 0:01:09]} Re4 {[%emt 0:05:23]} 21. Rbd1 {[%emt 0:01:12]} Rxd4 {[%emt 0:01:52]} 22. Rxd4 {[%emt 0:00:32]} g6 {[%emt 0:02:55]} 23. g4 {[%emt 0:07:06]} h6 {[%emt 0:09:21]} 24. h4 {[%emt 0:00:17]} Ne8 {[%emt 0:09:21]} 25. c4 {[%emt 0:03:05]} Nc7 {[%emt 0:00:12]} 26. c5 {[%emt 0:01:41]} Ne6 {[%emt 0:08:55]} 27. cxb6 {[%emt 0:01:55]} Nxd4 {[%emt 0:00:04]} 28. Nxd4 {[%emt 0:00:14]} Rd6 {[%emt 0:00:04]} 29. Nb3 {[%emt 0:12:13]} Rxb6 {[%emt 0:01:22]} 30. Nxd5 {[%emt 0:00:09]} Rd6 {[%emt 0:00:51]} 31. Ne3 {[%emt 0:02:22]} Kg7 {[%emt 0:01:54]} 32. Kg2 {[%emt 0:00:34]} b6 {[%emt 0:01:46]} 33. Kf3 {[%emt 0:01:27]} Kf6 {[%emt 0:00:21]} 34. Ke4 {[%emt 0:03:31]} Re6+ {[%emt 0:05:25]} 35. Kd5 {[%emt 0:01:27]} g5 {[%emt 0:00:23]} 36. h5 {[%emt 0:00:38]} Re5+ {[%emt 0:01:44]} 37. Kd4 {[%emt 0:00:57]} Ke6 {[%emt 0:00:42]} 38. Nd2 {[%emt 0:00:54]} Ra5 {[%emt 0:02:06]} 39. a3 {[%emt 0:00:36]} Ra4+ {[%emt 0:00:19]} 40. Ndc4 {[%emt 0:00:23]} 1-0

[Event "34rd NATO Championship 2024"]
[Site "Rhodes"]
[Date "2024.10.21"]
[Round "1.26"]
[White "Van den Heuvel, Tonnie"]
[Black "Mihailov, Iulian"]
[Result "1/2-1/2"]
[ECO "A06"]
[WhiteElo "1839"]
[BlackElo "2048"]
[Annotator "RC"]
[PlyCount "49"]
[EventDate "2024.09.18"]
[EventType "swiss"]
[EventCountry "GRE"]
[SourceTitle "playchess.com"]
[Source "ChessBase"]
[SourceQuality "1"]
[TimeControl "5400+30"]

1. b3 {[%emt 0:00:03]} d5 {[%emt 0:00:15]} 2. Bb2 {[%emt 0:00:09]} Bg4 {[%emt 0:00:18]} 3. Nf3 {[%emt 0:01:36]} Bxf3 {[%emt 0:00:03]} 4. exf3 {[%emt 0:01:16]} e6 {[%emt 0:00:06]} 5. d4 {[%emt 0:01:01]} Bd6 {[%emt 0:01:34]} 6. Qc1 {[%emt 0:03:51]} Qf6 {[%emt 0:03:48]} 7. c4 {[%emt 0:02:31]} Ne7 {[%emt 0:05:39]} 8. c5 {[%emt 0:08:16]} Bf4 {[%emt 0:00:24]} 9. Qc3 {[%emt 0:00:29]} Nbc6 {[%emt 0:02:18]} 10. g3 {[%emt 0:01:13]} Bh6 {[%emt 0:00:23]} 11. f4 {[%emt 0:00:58]} Nf5 {[%emt 0:25:03]} 12. Bb5 {[%emt 0:05:41]} g5 {[%emt 0:09:05]} 13. fxg5 {[%emt 0:16:39]} Qxg5 {[%emt 0:13:02]} 14. Nd2 {[%emt 0:06:06]} Qxd2+ {[%emt 0:15:15]} 15. Qxd2 {[%emt 0:02:05]} Bxd2+ {[%emt 0:00:02]} 16. Kxd2 {[%emt 0:00:19]} Kd7 {[%emt 0:04:08]} 17. Kd3 {[%emt 0:08:42]} a6 {[%emt 0:00:22]} 18. Ba4 {[%emt 0:01:33]} b5 {[%emt 0:09:28]} 19. cxb6 {[%emt 0:00:23]} cxb6 {[%emt 0:00:01]} 20. Bxc6+ {[%emt 0:01:13]} Kxc6 {[%emt 0:00:02]} 21. h4 {[%emt 0:05:43]} h5 {[%emt 0:03:14]} 22. Bc1 {[%emt 0:00:32]} Kd7 {[%emt 0:04:03]} 23. Bf4 {[%emt 0:00:51]} f6 {[%emt 0:00:44]} 24. Rac1 {[%emt 0:01:11]} Rac8 {[%emt 0:00:02]} 25. Rhe1 {[%emt 0:00:15]} 1/2-1/2

[Event "34rd NATO Championship 2024"]
[Site "Rhodes"]
[Date "2024.10.21"]
[Round "1.27"]
[White "Flaata, Alexander R."]
[Black "Spatrisano, Diego"]
[Result "1-0"]
[ECO "B07"]
[WhiteElo "2040"]
[BlackElo "1829"]
[Annotator "RC"]
[PlyCount "83"]
[EventDate "2024.09.18"]
[EventType "swiss"]
[EventCountry "GRE"]
[SourceTitle "playchess.com"]
[Source "ChessBase"]
[SourceQuality "1"]
[TimeControl "5400+30"]

1. e4 {[%emt 0:00:09]} d6 {[%emt 0:00:19]} 2. d4 {[%emt 0:00:53]} Nf6 {[%emt 0:00:12]} 3. Nc3 {[%emt 0:00:10]} g6 {[%emt 0:00:14]} 4. Be2 {[%emt 0:00:35]} Bg7 {[%emt 0:00:12]} 5. h4 {[%emt 0:00:13]} h5 {[%emt 0:01:04]} 6. Nf3 {[%emt 0:05:32]} c6 {[%emt 0:03:48]} 7. Bf4 {[%emt 0:03:59]} Qa5 {[%emt 0:16:57]} 8. Qd2 {[%emt 0:02:11]} Nbd7 {[%emt 0:02:47]} 9. e5 {[%emt 0:04:54]} dxe5 {[%emt 0:01:28]} 10. dxe5 {[%emt 0:03:24]} Nd5 {[%emt 0:09:02]} 11. Nxd5 {[%emt 0:06:29]} Qxd2+ {[%emt 0:04:19]} 12. Kxd2 {[%emt 0:01:13]} cxd5 {[%emt 0:00:47]} 13. Rhd1 {[%emt 0:04:57]} O-O {[%emt 0:02:41]} 14. Ke1 {[%emt 0:02:22]} e6 {[%emt 0:03:16]} 15. Rac1 {[%emt 0:05:19]} Nb6 {[%emt 0:03:36]} 16. b3 {[%emt 0:01:54]} Bd7 {[%emt 0:04:31]} 17. a4 {[%emt 0:00:47]} Bc6 {[%emt 0:01:42]} 18. Bd2 {[%emt 0:05:33]} Nd7 {[%emt 0:00:33]} 19. Bb4 {[%emt 0:01:01]} Rfc8 {[%emt 0:03:31]} 20. Bd6 {[%emt 0:01:15]} b6 {[%emt 0:03:10]} 21. Ba6 {[%emt 0:03:07]} Re8 {[%emt 0:08:16]} 22. Nd4 {[%emt 0:03:00]} Bxe5 {[%emt 0:02:15]} 23. Bxe5 {[%emt 0:00:19]} Nxe5 {[%emt 0:02:05]} 24. f4 {[%emt 0:01:24]} Bxa4 {[%emt 0:00:49]} 25. fxe5 {[%emt 0:01:52]} Bd7 {[%emt 0:00:29]} 26. Kd2 {[%emt 0:01:45]} Rab8 {[%emt 0:01:59]} 27. Bd3 {[%emt 0:01:11]} Kg7 {[%emt 0:02:44]} 28. Rf1 {[%emt 0:01:14]} Rec8 {[%emt 0:04:05]} 29. Ra1 {[%emt 0:04:18]} Rc7 {[%emt 0:01:12]} 30. b4 {[%emt 0:00:55]} Be8 {[%emt 0:03:14]} 31. Rf6 {[%emt 0:02:04]} Rbc8 {[%emt 0:01:58]} 32. Ra3 {[%emt 0:01:39]} Bd7 {[%emt 0:02:26]} 33. Ke3 {[%emt 0:00:43]} Be8 {[%emt 0:02:15]} 34. Kf4 {[%emt 0:00:40]} Re7 {[%emt 0:00:12]} 35. Kg5 {[%emt 0:00:36]} Kh7 {[%emt 0:02:22]} 36. Ra1 {[%emt 0:02:26]} Rcc7 {[%emt 0:00:30]} 37. g4 {[%emt 0:01:05]} hxg4 {[%emt 0:01:59]} 38. h5 {[%emt 0:01:41]} Kg7 {[%emt 0:00:34]} 39. hxg6 {[%emt 0:00:29]} Bd7 {[%emt 0:02:05]} 40. Rh1 {[%emt 0:01:04]} Kg8 {[%emt 0:01:57]} 41. Rh7 {[%emt 0:01:38]} Be8 {[%emt 0:00:50]} 42. g7 {[%emt 0:00:35]} 1-0

[Event "34rd NATO Championship 2024"]
[Site "Rhodes"]
[Date "2024.10.21"]
[Round "1.28"]
[White "Voroblievas, Arturas"]
[Black "Onley, David E"]
[Result "0-1"]
[ECO "B06"]
[WhiteElo "1819"]
[BlackElo "2040"]
[Annotator "RC"]
[PlyCount "82"]
[EventDate "2024.09.18"]
[EventType "swiss"]
[EventCountry "GRE"]
[SourceTitle "playchess.com"]
[Source "ChessBase"]
[SourceQuality "1"]
[TimeControl "5400+30"]

1. e4 {[%emt 0:00:04]} g6 {[%emt 0:00:11]} 2. d4 {[%emt 0:00:11]} Bg7 {[%emt 0:00:10]} 3. Nc3 {[%emt 0:00:32]} d6 {[%emt 0:00:15]} 4. f4 {[%emt 0:00:51]} a6 {[%emt 0:00:27]} 5. Nf3 {[%emt 0:01:49]} b5 {[%emt 0:01:20]} 6. a3 {[%emt 0:01:52]} Nd7 {[%emt 0:00:31]} 7. Be2 {[%emt 0:07:49]} c5 {[%emt 0:00:53]} 8. Be3 {[%emt 0:01:19]} Bb7 {[%emt 0:02:02]} 9. O-O {[%emt 0:01:08]} Ngf6 {[%emt 0:13:21]} 10. dxc5 {[%emt 0:13:12]} Nxc5 {[%emt 0:01:12]} 11. e5 {[%emt 0:04:02]} Ng4 {[%emt 0:01:22]} 12. Bd4 {[%emt 0:01:01]} Ne6 {[%emt 0:01:19]} 13. h3 {[%emt 0:02:48]} Nxd4 {[%emt 0:03:39]} 14. Qxd4 {[%emt 0:00:40]} Nh6 {[%emt 0:01:56]} 15. Qf2 {[%emt 0:04:19]} Qc7 {[%emt 0:05:41]} 16. Kh1 {[%emt 0:04:42]} O-O {[%emt 0:09:48]} 17. Bd3 {[%emt 0:02:36]} dxe5 {[%emt 0:03:57]} 18. Nxe5 {[%emt 0:02:48]} Rad8 {[%emt 0:05:07]} 19. Rae1 {[%emt 0:01:29]} e6 {[%emt 0:06:44]} 20. Qh4 {[%emt 0:09:32]} Nf5 {[%emt 0:05:01]} 21. Bxf5 {[%emt 0:02:21]} exf5 {[%emt 0:00:35]} 22. Rf2 {[%emt 0:12:31]} Rd4 {[%emt 0:06:28]} 23. Nd3 {[%emt 0:04:24]} Qc6 {[%emt 0:03:46]} 24. Qg3 {[%emt 0:05:26]} Rfd8 {[%emt 0:03:35]} 25. Re7 {[%emt 0:03:43]} Bf6 {[%emt 0:02:28]} 26. Ne5 {[%emt 0:02:48]} Qb6 {[%emt 0:02:55]} 27. Rxf7 {[%emt 0:03:56]} Bxe5 {[%emt 0:03:26]} 28. Rxb7 {[%emt 0:00:21]} Qxb7 {[%emt 0:00:37]} 29. fxe5 {[%emt 0:00:13]} Rd2 {[%emt 0:04:45]} 30. Qe3 {[%emt 0:02:17]} Rxf2 {[%emt 0:00:56]} 31. Qxf2 {[%emt 0:00:06]} Qe7 {[%emt 0:02:12]} 32. Qb6 {[%emt 0:01:03]} Rd2 {[%emt 0:01:48]} 33. Qxa6 {[%emt 0:02:29]} Qxe5 {[%emt 0:00:10]} 34. Qa8+ {[%emt 0:00:34]} Kg7 {[%emt 0:00:36]} 35. Qb7+ {[%emt 0:00:40]} Kh6 {[%emt 0:00:17]} 36. Qf7 {[%emt 0:01:15]} Rxc2 {[%emt 0:01:25]} 37. Qf8+ {[%emt 0:00:14]} Kh5 {[%emt 0:01:58]} 38. g4+ {[%emt 0:00:19]} fxg4 {[%emt 0:01:12]} 39. hxg4+ {[%emt 0:00:14]} Kxg4 {[%emt 0:00:47]} 40. Qb4+ {[%emt 0:01:38]} Qf4 {[%emt 0:00:38]} 41. Qxf4+ {[%emt 0:00:22]} Kxf4 {[%emt 0:00:10]} 0-1